[Event "Titled Tuesday Blitz August 09 Late 2022"]
[White "Andreikin, Dmitry"]
[Black "Lobanov, Sergei"]
[WhiteFideId "4158814"]
[BlackFideId "24183750"]
[WhiteElo "2736"]
[BlackElo "2524"]
[Result "1-0"]
[Round "10"]
[TimeControl "180+1"]
[Date "2022.08.09"]
[WhiteClock "0:00:14"]
[BlackClock "0:00:08"]

1. d4 {[%clk 0:03:00]}  Nf6 {[%clk 0:02:59]} 2. c4 {[%clk 0:03:01]}  e6 {[%clk 0:02:59]} 3. Nf3 {[%clk 0:03:01]}  d5 {[%clk 0:02:59]} 4. g3 {[%clk 0:03:01]}  Bb4+ {[%clk 0:02:58]} 5. Bd2 {[%clk 0:03:01]}  Be7 {[%clk 0:02:58]} 6. Bg2 {[%clk 0:03:02]}  O-O {[%clk 0:02:58]} 7. O-O {[%clk 0:03:02]}  c6 {[%clk 0:02:58]} 8. Nc3 {[%clk 0:03:03]}  dxc4 {[%clk 0:02:56]} 9. a4 {[%clk 0:03:02]}  Na6 {[%clk 0:02:36]} 10. a5 {[%clk 0:02:51]}  Nb4 {[%clk 0:02:23]} 11. Bf4 {[%clk 0:02:41]}  Nbd5 {[%clk 0:02:17]} 12. Ne5 {[%clk 0:02:36]}  Bd7 {[%clk 0:02:10]} 13. Nxc4 {[%clk 0:02:32]}  c5 {[%clk 0:02:01]} 14. a6 {[%clk 0:02:15]}  b5 {[%clk 0:01:45]} 15. Ne5 {[%clk 0:02:14]}  c4 {[%clk 0:01:33]} 16. Bg5 {[%clk 0:02:10]}  Rc8 {[%clk 0:01:23]} 17. e4 {[%clk 0:01:18]}  Nb6 {[%clk 0:01:02]} 18. d5 {[%clk 0:01:12]}  exd5 {[%clk 0:01:00]} 19. exd5 {[%clk 0:01:12]}  b4 {[%clk 0:00:56]} 20. d6 {[%clk 0:01:06]}  bxc3 {[%clk 0:00:55]} 21. bxc3 {[%clk 0:01:04]}  Re8 {[%clk 0:00:48]} 22. dxe7 {[%clk 0:01:00]}  Qxe7 {[%clk 0:00:46]} 23. Bxf6 {[%clk 0:00:41]}  gxf6 {[%clk 0:00:43]} 24. Nxd7 {[%clk 0:00:41]}  Qxd7 {[%clk 0:00:42]} 25. Qf3 {[%clk 0:00:40]}  Qe6 {[%clk 0:00:33]} 26. Ra5 {[%clk 0:00:33]}  Rcd8 {[%clk 0:00:27]} 27. Rh5 {[%clk 0:00:22]}  Rd3 {[%clk 0:00:24]} 28. Qf4 {[%clk 0:00:22]}  Nd7 {[%clk 0:00:22]} 29. Bh3 {[%clk 0:00:20]}  Qe4 {[%clk 0:00:17]} 30. Qxe4 {[%clk 0:00:15]}  Rxe4 {[%clk 0:00:17]} 31. Bf5 {[%clk 0:00:16]}  Re5 {[%clk 0:00:18]} 32. Bxh7+ {[%clk 0:00:15]}  Kg7 {[%clk 0:00:17]} 33. Rxe5 {[%clk 0:00:16]}  fxe5 {[%clk 0:00:12]} 34. Bxd3 {[%clk 0:00:16]}  cxd3 {[%clk 0:00:13]} 35. f3 {[%clk 0:00:14]}  f5 {[%clk 0:00:11]} 36. Kf2 {[%clk 0:00:14]}  e4 {[%clk 0:00:08]} 37. fxe4 {[%clk 0:00:14]}  fxe4 {[%clk 0:00:08]} 38. Ke3 {[%clk 0:00:14]} 1-0


[Site "https://www.chess.com"]

[Event "Titled Tuesday Blitz August 09 Late 2022"]
[White "Bernal Moro, Luis Javier"]
[Black "Altman, Joshua"]
[WhiteFideId "2200236"]
[BlackFideId "426210"]
[WhiteElo "2376"]
[BlackElo "1945"]
[Result "1-0"]
[Round "10"]
[TimeControl "180+1"]
[Date "2022.08.09"]
[WhiteClock "0:01:08"]
[BlackClock "0:01:34"]

1. c4 {[%clk 0:02:59]}  e5 {[%clk 0:03:00]} 2. Nc3 {[%clk 0:02:59]}  Nc6 {[%clk 0:03:00]} 3. Nf3 {[%clk 0:02:59]}  Nf6 {[%clk 0:03:00]} 4. e4 {[%clk 0:02:59]}  Bb4 {[%clk 0:03:00]} 5. d3 {[%clk 0:02:59]}  O-O {[%clk 0:03:00]} 6. h3 {[%clk 0:02:58]}  h6 {[%clk 0:03:00]} 7. Be2 {[%clk 0:02:56]}  d6 {[%clk 0:03:00]} 8. Be3 {[%clk 0:02:55]}  Be6 {[%clk 0:02:59]} 9. O-O {[%clk 0:02:54]}  Bxc3 {[%clk 0:02:58]} 10. bxc3 {[%clk 0:02:53]}  Ne7 {[%clk 0:02:53]} 11. Nh4 {[%clk 0:02:49]}  Nh7 {[%clk 0:02:41]} 12. Kh2 {[%clk 0:02:44]}  f5 {[%clk 0:02:40]} 13. Nxf5 {[%clk 0:02:42]}  Bxf5 {[%clk 0:02:35]} 14. exf5 {[%clk 0:02:41]}  Nxf5 {[%clk 0:02:36]} 15. Bd2 {[%clk 0:02:38]}  Qh4 {[%clk 0:02:33]} 16. g3 {[%clk 0:02:26]}  Qf6 {[%clk 0:02:28]} 17. f4 {[%clk 0:02:16]}  exf4 {[%clk 0:02:24]} 18. Rxf4 {[%clk 0:02:16]}  Qe5 {[%clk 0:02:19]} 19. Bf3 {[%clk 0:02:11]}  Nxg3 {[%clk 0:02:16]} 20. d4 {[%clk 0:01:33]}  Qe7 {[%clk 0:02:06]} 21. Kxg3 {[%clk 0:01:32]}  Ng5 {[%clk 0:01:56]} 22. Bd5+ {[%clk 0:01:31]}  Kh8 {[%clk 0:01:54]} 23. Qe1 {[%clk 0:01:25]}  Qd7 {[%clk 0:01:52]} 24. Rxf8+ {[%clk 0:01:24]}  Rxf8 {[%clk 0:01:51]} 25. Bxg5 {[%clk 0:01:24]}  hxg5 {[%clk 0:01:50]} 26. Qe6 {[%clk 0:01:22]}  Qd8 {[%clk 0:01:45]} 27. Re1 {[%clk 0:01:21]}  g4 {[%clk 0:01:45]} 28. Qxg4 {[%clk 0:01:19]}  Qf6 {[%clk 0:01:45]} 29. Qh4+ {[%clk 0:01:19]}  Qxh4+ {[%clk 0:01:44]} 30. Kxh4 {[%clk 0:01:19]}  Rf2 {[%clk 0:01:44]} 31. c5 {[%clk 0:01:15]}  dxc5 {[%clk 0:01:45]} 32. dxc5 {[%clk 0:01:15]}  Rf5 {[%clk 0:01:45]} 33. Bxb7 {[%clk 0:01:13]}  Rxc5 {[%clk 0:01:44]} 34. Re3 {[%clk 0:01:13]}  Ra5 {[%clk 0:01:41]} 35. Be4 {[%clk 0:01:11]}  Rxa2 {[%clk 0:01:40]} 36. Bg6 {[%clk 0:01:10]}  Ra4+ {[%clk 0:01:37]} 37. Kg3 {[%clk 0:01:09]}  Re4 {[%clk 0:01:34]} 38. Rxe4 {[%clk 0:01:08]} 1-0


[Site "https://www.chess.com"]

[Event "Titled Tuesday Blitz August 09 Late 2022"]
[White "Bilych, Olexiy"]
[Black "Janaszak, Dawid"]
[WhiteFideId "14156504"]
[BlackFideId "1119206"]
[WhiteElo "2157"]
[BlackElo "2165"]
[Result "1-0"]
[Round "10"]
[TimeControl "180+1"]
[Date "2022.08.09"]
[WhiteClock "0:01:26"]
[BlackClock "0:00:39"]

1. e4 {[%clk 0:03:00]}  c5 {[%clk 0:02:58]} 2. Nf3 {[%clk 0:03:01]}  Nc6 {[%clk 0:02:58]} 3. Bb5 {[%clk 0:03:00]}  g6 {[%clk 0:02:58]} 4. Bxc6 {[%clk 0:03:00]}  dxc6 {[%clk 0:02:59]} 5. O-O {[%clk 0:02:59]}  Bg7 {[%clk 0:02:58]} 6. d3 {[%clk 0:03:00]}  Qc7 {[%clk 0:02:48]} 7. h3 {[%clk 0:02:58]}  Nf6 {[%clk 0:02:45]} 8. Nc3 {[%clk 0:02:56]}  e5 {[%clk 0:02:44]} 9. Be3 {[%clk 0:02:56]}  Nd7 {[%clk 0:02:41]} 10. Ne2 {[%clk 0:02:53]}  b6 {[%clk 0:02:32]} 11. Qd2 {[%clk 0:02:51]}  h6 {[%clk 0:02:32]} 12. Rae1 {[%clk 0:02:47]}  Nf8 {[%clk 0:02:31]} 13. b3 {[%clk 0:02:44]}  Ne6 {[%clk 0:02:31]} 14. Nh2 {[%clk 0:02:43]}  Bb7 {[%clk 0:02:12]} 15. f4 {[%clk 0:02:41]}  exf4 {[%clk 0:02:13]} 16. Nxf4 {[%clk 0:02:41]}  Be5 {[%clk 0:01:57]} 17. Ng4 {[%clk 0:02:33]}  O-O-O {[%clk 0:01:36]} 18. Nxe6 {[%clk 0:02:26]}  fxe6 {[%clk 0:01:35]} 19. Nxe5 {[%clk 0:02:23]}  Qxe5 {[%clk 0:01:36]} 20. Bxh6 {[%clk 0:02:20]}  Qh5 {[%clk 0:01:30]} 21. Bg5 {[%clk 0:02:18]}  Rdf8 {[%clk 0:01:29]} 22. Rf4 {[%clk 0:01:58]}  Qh7 {[%clk 0:01:03]} 23. Ref1 {[%clk 0:01:55]}  Rxf4 {[%clk 0:01:02]} 24. Qxf4 {[%clk 0:01:55]}  Qd7 {[%clk 0:00:59]} 25. Qe5 {[%clk 0:01:54]}  Re8 {[%clk 0:00:56]} 26. Bf4 {[%clk 0:01:54]}  Qd4+ {[%clk 0:00:52]} 27. Qxd4 {[%clk 0:01:52]}  cxd4 {[%clk 0:00:53]} 28. Be5 {[%clk 0:01:53]}  c5 {[%clk 0:00:52]} 29. Rf7 {[%clk 0:01:52]}  Ba6 {[%clk 0:00:42]} 30. Rc7+ {[%clk 0:01:49]}  Kd8 {[%clk 0:00:41]} 31. Rxa7 {[%clk 0:01:49]}  Bb5 {[%clk 0:00:41]} 32. Bc7+ {[%clk 0:01:44]}  Kd7 {[%clk 0:00:42]} 33. a4 {[%clk 0:01:38]}  Bc6 {[%clk 0:00:38]} 34. Bxb6+ {[%clk 0:01:38]}  Kd6 {[%clk 0:00:38]} 35. Bc7+ {[%clk 0:01:38]}  Kd7 {[%clk 0:00:38]} 36. Be5+ {[%clk 0:01:37]}  Kd8 {[%clk 0:00:37]} 37. Rc7 {[%clk 0:01:31]}  Bd7 {[%clk 0:00:36]} 38. Rxc5 {[%clk 0:01:31]}  Rg8 {[%clk 0:00:36]} 39. Bxd4 {[%clk 0:01:30]}  g5 {[%clk 0:00:36]} 40. Rxg5 {[%clk 0:01:29]}  Rf8 {[%clk 0:00:35]} 41. a5 {[%clk 0:01:27]}  Kc7 {[%clk 0:00:36]} 42. a6 {[%clk 0:01:27]}  Kc6 {[%clk 0:00:36]} 43. a7 {[%clk 0:01:26]}  Ra8 {[%clk 0:00:36]} 44. h4 {[%clk 0:01:26]}  e5 {[%clk 0:00:37]} 45. Rxe5 {[%clk 0:01:26]}  Bg4 {[%clk 0:00:38]} 46. h5 {[%clk 0:01:26]}  Bd1 {[%clk 0:00:39]} 47. h6 {[%clk 0:01:25]}  Bxc2 {[%clk 0:00:39]} 48. Rc5+ {[%clk 0:01:25]}  Kb7 {[%clk 0:00:39]} 49. Rxc2 {[%clk 0:01:26]}  Rh8 {[%clk 0:00:39]} 50. Bxh8 {[%clk 0:01:26]} 1-0


[Site "https://www.chess.com"]

[Event "Titled Tuesday Blitz August 09 Late 2022"]
[White "Blanco Ronquillo, Humberto L."]
[Black "Matinian, Nikita"]
[WhiteFideId "3504239"]
[BlackFideId "24129100"]
[WhiteElo "2425"]
[BlackElo "2422"]
[Result "1/2-1/2"]
[Round "10"]
[TimeControl "180+1"]
[Date "2022.08.09"]
[WhiteClock "0:00:15"]
[BlackClock "0:00:18"]

1. d4 {[%clk 0:03:00]}  Nf6 {[%clk 0:02:59]} 2. c4 {[%clk 0:03:00]}  g6 {[%clk 0:02:59]} 3. Nf3 {[%clk 0:02:59]}  Bg7 {[%clk 0:03:00]} 4. g3 {[%clk 0:03:00]}  O-O {[%clk 0:03:01]} 5. Bg2 {[%clk 0:03:00]}  d6 {[%clk 0:03:02]} 6. O-O {[%clk 0:03:00]}  Nc6 {[%clk 0:03:02]} 7. Nc3 {[%clk 0:02:57]}  e5 {[%clk 0:03:03]} 8. Be3 {[%clk 0:02:55]}  Ng4 {[%clk 0:03:01]} 9. Bg5 {[%clk 0:02:54]}  f6 {[%clk 0:03:01]} 10. Bc1 {[%clk 0:02:53]}  Bd7 {[%clk 0:02:58]} 11. h3 {[%clk 0:02:52]}  Nh6 {[%clk 0:02:55]} 12. e4 {[%clk 0:02:48]}  Nf7 {[%clk 0:02:46]} 13. Be3 {[%clk 0:02:45]}  f5 {[%clk 0:02:41]} 14. Qd2 {[%clk 0:02:41]}  exd4 {[%clk 0:02:14]} 15. Nxd4 {[%clk 0:02:40]}  Nfe5 {[%clk 0:02:13]} 16. exf5 {[%clk 0:02:12]}  Nxd4 {[%clk 0:02:06]} 17. Bxd4 {[%clk 0:02:10]}  Bxf5 {[%clk 0:02:06]} 18. f4 {[%clk 0:02:05]}  Nc6 {[%clk 0:01:58]} 19. Bxg7 {[%clk 0:02:05]}  Kxg7 {[%clk 0:01:59]} 20. Rae1 {[%clk 0:01:55]}  Qf6 {[%clk 0:01:55]} 21. g4 {[%clk 0:01:54]}  Bd7 {[%clk 0:01:53]} 22. Nd5 {[%clk 0:01:49]}  Qd4+ {[%clk 0:01:53]} 23. Qxd4+ {[%clk 0:01:48]}  Nxd4 {[%clk 0:01:54]} 24. Re7+ {[%clk 0:01:08]}  Rf7 {[%clk 0:01:54]} 25. Rfe1 {[%clk 0:01:08]}  Rf8 {[%clk 0:01:39]} 26. Nxc7 {[%clk 0:01:08]}  Kh6 {[%clk 0:01:27]} 27. Nd5 {[%clk 0:01:03]}  Bc6 {[%clk 0:01:21]} 28. Nf6 {[%clk 0:01:02]}  g5 {[%clk 0:00:53]} 29. Bxc6 {[%clk 0:00:50]}  bxc6 {[%clk 0:00:50]} 30. fxg5+ {[%clk 0:00:46]}  Kg6 {[%clk 0:00:39]} 31. Kg2 {[%clk 0:00:38]}  h6 {[%clk 0:00:30]} 32. Rxf7 {[%clk 0:00:32]}  Rxf7 {[%clk 0:00:30]} 33. Ne4 {[%clk 0:00:33]}  Nf3 {[%clk 0:00:24]} 34. Rd1 {[%clk 0:00:29]}  d5 {[%clk 0:00:17]} 35. cxd5 {[%clk 0:00:28]}  Nh4+ {[%clk 0:00:18]} 36. Kg3 {[%clk 0:00:28]}  hxg5 {[%clk 0:00:18]} 37. dxc6 {[%clk 0:00:20]}  Rf3+ {[%clk 0:00:18]} 38. Kh2 {[%clk 0:00:21]}  Re3 {[%clk 0:00:19]} 39. c7 {[%clk 0:00:20]}  Re2+ {[%clk 0:00:16]} 40. Kg1 {[%clk 0:00:20]}  Nf3+ {[%clk 0:00:16]} 41. Kf1 {[%clk 0:00:20]}  Rc2 {[%clk 0:00:16]} 42. Nc3 {[%clk 0:00:19]}  Nh2+ {[%clk 0:00:16]} 43. Kg1 {[%clk 0:00:18]}  Nf3+ {[%clk 0:00:17]} 44. Kf1 {[%clk 0:00:18]}  Nh2+ {[%clk 0:00:17]} 45. Kg1 {[%clk 0:00:16]}  Nf3+ {[%clk 0:00:18]} 46. Kf1 {[%clk 0:00:15]} 1/2-1/2


[Site "https://www.chess.com"]

[Event "Titled Tuesday Blitz August 09 Late 2022"]
[White "Claverie, Christophe"]
[Black "McBryde, Lamel"]
[WhiteFideId "605514"]
[BlackFideId "2058596"]
[WhiteElo "2300"]
[BlackElo "2136"]
[Result "1-0"]
[Round "10"]
[TimeControl "180+1"]
[Date "2022.08.09"]
[WhiteClock "0:00:15"]
[BlackClock "0:00:21"]

1. d4 {[%clk 0:03:00]}  Nf6 {[%clk 0:03:00]} 2. Bg5 {[%clk 0:03:00]}  Ne4 {[%clk 0:03:00]} 3. Bf4 {[%clk 0:03:00]}  d5 {[%clk 0:03:00]} 4. f3 {[%clk 0:03:00]}  Nd6 {[%clk 0:03:01]} 5. Nc3 {[%clk 0:03:00]}  c6 {[%clk 0:03:01]} 6. e4 {[%clk 0:02:50]}  dxe4 {[%clk 0:03:01]} 7. fxe4 {[%clk 0:02:48]}  g6 {[%clk 0:02:57]} 8. Qd2 {[%clk 0:02:41]}  Bg7 {[%clk 0:02:57]} 9. Nf3 {[%clk 0:02:40]}  h6 {[%clk 0:02:52]} 10. Bd3 {[%clk 0:02:37]}  g5 {[%clk 0:02:52]} 11. Bg3 {[%clk 0:02:37]}  g4 {[%clk 0:02:52]} 12. Ne5 {[%clk 0:02:36]}  Nd7 {[%clk 0:02:43]} 13. Nxd7 {[%clk 0:02:33]}  Qxd7 {[%clk 0:02:36]} 14. Ne2 {[%clk 0:02:33]}  h5 {[%clk 0:02:23]} 15. O-O-O {[%clk 0:02:32]}  h4 {[%clk 0:02:23]} 16. Bf4 {[%clk 0:02:32]}  Nb5 {[%clk 0:02:11]} 17. c3 {[%clk 0:02:21]}  Qe6 {[%clk 0:01:54]} 18. Kb1 {[%clk 0:02:18]}  Nd6 {[%clk 0:01:55]} 19. e5 {[%clk 0:02:14]}  Nc4 {[%clk 0:01:49]} 20. Qc1 {[%clk 0:02:14]}  Nb6 {[%clk 0:01:43]} 21. c4 {[%clk 0:02:06]}  Bd7 {[%clk 0:01:29]} 22. Rhe1 {[%clk 0:02:04]}  O-O-O {[%clk 0:01:29]} 23. Bg5 {[%clk 0:02:02]}  Bh6 {[%clk 0:01:15]} 24. b3 {[%clk 0:01:55]}  Bxg5 {[%clk 0:01:11]} 25. Qxg5 {[%clk 0:01:56]}  Qh6 {[%clk 0:00:57]} 26. Qxe7 {[%clk 0:01:50]}  Be6 {[%clk 0:00:46]} 27. Rf1 {[%clk 0:01:34]}  Qe3 {[%clk 0:00:34]} 28. Qf6 {[%clk 0:01:34]}  c5 {[%clk 0:00:21]} 29. d5 {[%clk 0:01:30]}  Nxd5 {[%clk 0:00:20]} 30. cxd5 {[%clk 0:01:30]}  Rxd5 {[%clk 0:00:20]} 31. Nf4 {[%clk 0:01:20]}  Rhd8 {[%clk 0:00:17]} 32. Nxd5 {[%clk 0:01:06]}  Rxd5 {[%clk 0:00:18]} 33. Bc2 {[%clk 0:01:02]}  c4 {[%clk 0:00:08]} 34. Rxd5 {[%clk 0:00:55]}  Bxd5 {[%clk 0:00:09]} 35. bxc4 {[%clk 0:00:50]}  Bxg2 {[%clk 0:00:09]} 36. Rd1 {[%clk 0:00:49]}  b6 {[%clk 0:00:07]} 37. Qd8+ {[%clk 0:00:30]}  Kb7 {[%clk 0:00:07]} 38. Qd7+ {[%clk 0:00:30]}  Ka6 {[%clk 0:00:07]} 39. Qb5+ {[%clk 0:00:27]}  Kb7 {[%clk 0:00:07]} 40. c5 {[%clk 0:00:22]}  Qxc5 {[%clk 0:00:05]} 41. Qxc5 {[%clk 0:00:20]}  bxc5 {[%clk 0:00:06]} 42. Rg1 {[%clk 0:00:19]}  Bf3 {[%clk 0:00:04]} 43. Bf5 {[%clk 0:00:18]}  Kc6 {[%clk 0:00:03]} 44. Bxg4 {[%clk 0:00:17]}  Be4+ {[%clk 0:00:03]} 45. Kc1 {[%clk 0:00:16]}  Kd5 {[%clk 0:00:04]} 46. Re1 {[%clk 0:00:14]}  Bg6 {[%clk 0:00:01]} 47. Bf3+ {[%clk 0:00:14]}  Kd4 {[%clk 0:00:02]} 48. Kd2 {[%clk 0:00:15]}  c4 {[%clk 0:00:02]} 49. Re3 {[%clk 0:00:14]}  c3+ {[%clk 0:00:03]} 50. Rxc3 {[%clk 0:00:14]}  Kxe5 {[%clk 0:00:04]} 51. Ke3 {[%clk 0:00:14]}  a5 {[%clk 0:00:03]} 52. Ra3 {[%clk 0:00:15]}  a4 {[%clk 0:00:03]} 53. Rxa4 {[%clk 0:00:15]}  Kd6 {[%clk 0:00:04]} 54. Ra5 {[%clk 0:00:16]}  Kc7 {[%clk 0:00:03]} 55. Kf4 {[%clk 0:00:17]}  Kb6 {[%clk 0:00:03]} 56. Rg5 {[%clk 0:00:17]}  h3 {[%clk 0:00:04]} 57. Rxg6+ {[%clk 0:00:17]}  fxg6 {[%clk 0:00:05]} 58. Bg4 {[%clk 0:00:17]}  Kc5 {[%clk 0:00:05]} 59. Bxh3 {[%clk 0:00:18]}  Kb4 {[%clk 0:00:06]} 60. Kg5 {[%clk 0:00:19]}  Ka3 {[%clk 0:00:07]} 61. Kxg6 {[%clk 0:00:19]}  Kxa2 {[%clk 0:00:08]} 62. Bf5 {[%clk 0:00:20]}  Ka3 {[%clk 0:00:09]} 63. h4 {[%clk 0:00:21]}  Kb4 {[%clk 0:00:09]} 64. h5 {[%clk 0:00:21]}  Kc5 {[%clk 0:00:10]} 65. h6 {[%clk 0:00:22]}  Kd6 {[%clk 0:00:11]} 66. h7 {[%clk 0:00:23]}  Ke5 {[%clk 0:00:12]} 67. h8=Q+ {[%clk 0:00:24]}  Kf4 {[%clk 0:00:13]} 68. Qh6+ {[%clk 0:00:23]}  Ke5 {[%clk 0:00:14]} 69. Qg7+ {[%clk 0:00:22]}  Kf4 {[%clk 0:00:15]} 70. Be6 {[%clk 0:00:22]}  Ke3 {[%clk 0:00:16]} 71. Qe5+ {[%clk 0:00:21]}  Kd3 {[%clk 0:00:16]} 72. Bd7 {[%clk 0:00:19]}  Kc4 {[%clk 0:00:17]} 73. Bc6 {[%clk 0:00:18]}  Kb4 {[%clk 0:00:18]} 74. Qd4+ {[%clk 0:00:17]}  Ka3 {[%clk 0:00:19]} 75. Qb6 {[%clk 0:00:16]}  Ka2 {[%clk 0:00:19]} 76. Bd5+ {[%clk 0:00:16]}  Ka1 {[%clk 0:00:20]} 77. Be4 {[%clk 0:00:15]}  Ka2 {[%clk 0:00:20]} 78. Bc2 {[%clk 0:00:16]}  Ka3 {[%clk 0:00:21]} 79. Qb3# {[%clk 0:00:15]} 1-0


[Site "https://www.chess.com"]

[Event "Titled Tuesday Blitz August 09 Late 2022"]
[White "Ekdyshman, Mikhail"]
[Black "Salem, A.R. Saleh"]
[WhiteFideId "4149416"]
[BlackFideId "9301348"]
[WhiteElo "2146"]
[BlackElo "2674"]
[Result "0-1"]
[Round "10"]
[TimeControl "180+1"]
[Date "2022.08.09"]
[WhiteClock "0:00:03"]
[BlackClock "0:01:12"]

1. e4 {[%clk 0:03:00]}  c5 {[%clk 0:03:00]} 2. c3 {[%clk 0:03:00]}  Nf6 {[%clk 0:03:00]} 3. e5 {[%clk 0:03:01]}  Nd5 {[%clk 0:03:00]} 4. Nf3 {[%clk 0:03:01]}  d6 {[%clk 0:03:01]} 5. d4 {[%clk 0:03:02]}  cxd4 {[%clk 0:03:01]} 6. cxd4 {[%clk 0:03:02]}  Nc6 {[%clk 0:03:01]} 7. Bc4 {[%clk 0:03:02]}  Nb6 {[%clk 0:03:02]} 8. Bb3 {[%clk 0:03:03]}  d5 {[%clk 0:03:02]} 9. h3 {[%clk 0:03:00]}  Bf5 {[%clk 0:03:02]} 10. O-O {[%clk 0:02:58]}  e6 {[%clk 0:03:02]} 11. Nc3 {[%clk 0:02:57]}  Be7 {[%clk 0:03:02]} 12. Be3 {[%clk 0:02:51]}  Rc8 {[%clk 0:03:01]} 13. Rc1 {[%clk 0:02:51]}  Nc4 {[%clk 0:03:01]} 14. Bxc4 {[%clk 0:02:42]}  dxc4 {[%clk 0:03:02]} 15. d5 {[%clk 0:02:42]}  exd5 {[%clk 0:03:02]} 16. Qxd5 {[%clk 0:02:35]}  Bd3 {[%clk 0:03:02]} 17. Rfd1 {[%clk 0:02:33]}  O-O {[%clk 0:03:02]} 18. Ne1 {[%clk 0:02:23]}  Bf5 {[%clk 0:01:43]} 19. Qxc4 {[%clk 0:02:19]}  Qa5 {[%clk 0:01:41]} 20. Nd5 {[%clk 0:02:08]}  Be6 {[%clk 0:01:40]} 21. Nxe7+ {[%clk 0:02:00]}  Nxe7 {[%clk 0:01:40]} 22. Qe4 {[%clk 0:01:37]}  Nc6 {[%clk 0:01:33]} 23. f4 {[%clk 0:01:16]}  Qxa2 {[%clk 0:01:19]} 24. f5 {[%clk 0:01:11]}  Bb3 {[%clk 0:01:19]} 25. Ra1 {[%clk 0:00:58]}  Qxb2 {[%clk 0:01:19]} 26. Rdb1 {[%clk 0:00:58]}  Qc3 {[%clk 0:01:19]} 27. Ra3 {[%clk 0:00:49]}  Bd5 {[%clk 0:01:20]} 28. Rxc3 {[%clk 0:00:36]}  Bxe4 {[%clk 0:01:20]} 29. Rxb7 {[%clk 0:00:35]}  Bxf5 {[%clk 0:01:21]} 30. Ra3 {[%clk 0:00:18]}  a5 {[%clk 0:01:15]} 31. Nf3 {[%clk 0:00:13]}  h6 {[%clk 0:01:15]} 32. Bc5 {[%clk 0:00:13]}  Rfd8 {[%clk 0:01:14]} 33. Bd6 {[%clk 0:00:11]}  Be4 {[%clk 0:01:13]} 34. Re3 {[%clk 0:00:07]}  Nxe5 {[%clk 0:01:09]} 35. Rxe4 {[%clk 0:00:03]}  Nxf3+ {[%clk 0:01:10]} 36. gxf3 {[%clk 0:00:03]}  Rxd6 {[%clk 0:01:11]} 37. Ree7 {[%clk 0:00:03]}  Rf6 {[%clk 0:01:11]} 38. Kg2 {[%clk 0:00:02]}  Rc2+ {[%clk 0:01:12]} 39. Kg3 {[%clk 0:00:02]}  Rc3 {[%clk 0:01:13]} 40. Ra7 {[%clk 0:00:02]}  Rcxf3+ {[%clk 0:01:12]} 41. Kg2 {[%clk 0:00:03]}  Rf2+ {[%clk 0:01:12]} 0-1


[Site "https://www.chess.com"]

[Event "Titled Tuesday Blitz August 09 Late 2022"]
[White "Guz, Ari"]
[Black "Harvey, Marcus R"]
[WhiteFideId "2825759"]
[BlackFideId "400092"]
[WhiteElo "1913"]
[BlackElo "2485"]
[Result "1/2-1/2"]
[Round "10"]
[TimeControl "180+1"]
[Date "2022.08.09"]
[WhiteClock "0:00:12"]
[BlackClock "0:00:04"]

1. d4 {[%clk 0:03:00]}  Nf6 {[%clk 0:02:59]} 2. c4 {[%clk 0:03:00]}  e6 {[%clk 0:02:59]} 3. Nf3 {[%clk 0:02:59]}  b6 {[%clk 0:02:59]} 4. a3 {[%clk 0:02:59]}  Bb7 {[%clk 0:02:59]} 5. Nc3 {[%clk 0:02:58]}  d5 {[%clk 0:02:59]} 6. cxd5 {[%clk 0:02:59]}  Nxd5 {[%clk 0:02:59]} 7. Qc2 {[%clk 0:02:59]}  Nd7 {[%clk 0:02:57]} 8. e4 {[%clk 0:02:59]}  Nxc3 {[%clk 0:02:57]} 9. bxc3 {[%clk 0:03:00]}  c5 {[%clk 0:02:52]} 10. Bd3 {[%clk 0:02:59]}  cxd4 {[%clk 0:02:50]} 11. cxd4 {[%clk 0:02:59]}  Rc8 {[%clk 0:02:49]} 12. Qe2 {[%clk 0:02:59]}  Bd6 {[%clk 0:02:39]} 13. O-O {[%clk 0:02:56]}  e5 {[%clk 0:02:31]} 14. Bb2 {[%clk 0:02:49]}  exd4 {[%clk 0:02:23]} 15. Bxd4 {[%clk 0:02:49]}  O-O {[%clk 0:02:21]} 16. Rfd1 {[%clk 0:02:44]}  Bc5 {[%clk 0:02:14]} 17. Bb2 {[%clk 0:02:40]}  Qe7 {[%clk 0:02:12]} 18. Re1 {[%clk 0:02:22]}  Rfd8 {[%clk 0:02:02]} 19. e5 {[%clk 0:02:19]}  Nf8 {[%clk 0:02:01]} 20. Be4 {[%clk 0:02:16]}  Bxe4 {[%clk 0:01:57]} 21. Qxe4 {[%clk 0:02:17]}  Ne6 {[%clk 0:01:57]} 22. h3 {[%clk 0:02:05]}  Qd7 {[%clk 0:01:56]} 23. a4 {[%clk 0:01:57]}  Qd3 {[%clk 0:01:44]} 24. Qxd3 {[%clk 0:01:35]}  Rxd3 {[%clk 0:01:45]} 25. a5 {[%clk 0:01:31]}  Bb4 {[%clk 0:01:38]} 26. Rec1 {[%clk 0:01:29]}  Rxc1+ {[%clk 0:01:32]} 27. Rxc1 {[%clk 0:01:28]}  bxa5 {[%clk 0:01:26]} 28. Rc8+ {[%clk 0:01:18]}  Rd8 {[%clk 0:01:25]} 29. Rc6 {[%clk 0:01:17]}  h6 {[%clk 0:01:14]} 30. Ra6 {[%clk 0:01:17]}  Rd1+ {[%clk 0:01:12]} 31. Kh2 {[%clk 0:01:17]}  Rb1 {[%clk 0:01:13]} 32. Bd4 {[%clk 0:01:14]}  Nxd4 {[%clk 0:01:09]} 33. Nxd4 {[%clk 0:01:15]}  Bc3 {[%clk 0:01:08]} 34. Nf3 {[%clk 0:01:14]}  Rb7 {[%clk 0:01:03]} 35. Kg3 {[%clk 0:01:05]}  g6 {[%clk 0:00:55]} 36. Kf4 {[%clk 0:01:05]}  h5 {[%clk 0:00:47]} 37. Ke4 {[%clk 0:01:03]}  Rb4+ {[%clk 0:00:41]} 38. Kd3 {[%clk 0:01:02]}  Rb3 {[%clk 0:00:34]} 39. Kc4 {[%clk 0:00:56]}  Ra3 {[%clk 0:00:35]} 40. Rxa7 {[%clk 0:00:55]}  Ba1 {[%clk 0:00:29]} 41. Kd5 {[%clk 0:00:52]}  Ra2 {[%clk 0:00:23]} 42. e6 {[%clk 0:00:47]}  fxe6+ {[%clk 0:00:20]} 43. Kxe6 {[%clk 0:00:48]}  a4 {[%clk 0:00:17]} 44. h4 {[%clk 0:00:40]}  a3 {[%clk 0:00:11]} 45. Ra8+ {[%clk 0:00:32]}  Kg7 {[%clk 0:00:10]} 46. Ra7+ {[%clk 0:00:31]}  Kh6 {[%clk 0:00:10]} 47. Ng5 {[%clk 0:00:26]}  Bg7 {[%clk 0:00:08]} 48. Nf7+ {[%clk 0:00:25]}  Kh7 {[%clk 0:00:09]} 49. Ng5+ {[%clk 0:00:25]}  Kg8 {[%clk 0:00:09]} 50. Ra8+ {[%clk 0:00:24]}  Bf8 {[%clk 0:00:09]} 51. Kf6 {[%clk 0:00:23]}  Rxf2+ {[%clk 0:00:09]} 52. Kxg6 {[%clk 0:00:22]}  a2 {[%clk 0:00:09]} 53. Kxh5 {[%clk 0:00:18]}  Rxg2 {[%clk 0:00:07]} 54. Kg6 {[%clk 0:00:18]}  Rb2 {[%clk 0:00:04]} 55. Ne6 {[%clk 0:00:14]}  Rg2+ {[%clk 0:00:04]} 56. Ng5 {[%clk 0:00:15]}  Rb2 {[%clk 0:00:04]} 57. Ne6 {[%clk 0:00:15]}  Rg2+ {[%clk 0:00:05]} 58. Kf6 {[%clk 0:00:12]}  Rf2+ {[%clk 0:00:03]} 59. Kg6 {[%clk 0:00:12]}  Rg2+ {[%clk 0:00:04]} 1/2-1/2


[Site "https://www.chess.com"]